Cogmind - Beta 14 *** ADVENTURER MODE // 2024.09.01 @ 17:12:38 Player: Ms. V3-11A Result: Destroyed by Y-54 Guardian with Flak Gun Performance ------------- Evolutions (0) 0 Regions Visited (3) 600 Robots Destroyed (25) 125 Value Destroyed (818) 818 Prototype IDs (2) 40 Alien Tech Used (0) 0 Bonus (62) 62 TOTAL SCORE: 1645 Bonus ------- Follower Combat Kills 80 Friendly Fire -18 Cogmind --------- Core Integrity 0/250 Matter 192/300 Energy 160/160 System Corruption 6% Temperature Cool (0) Movement Walking (190) Ox1 Location -7/Recycling Parts ------- > --- POWER (1) -------- Light Nuclear Core > --- PROPULSION (2) --- Improved Carbon-fiber Leg Improved Carbon-fiber Leg > --- UTILITY (2) ------ Improved Heat Sink (fused) High-capacity Storage Unit > --- WEAPON (2) ------- Assault Rifle Gauss Rifle > --- INVENTORY (20) --- Improved Carbon-fiber Leg Improved Carbon-fiber Leg Subdweller Monowheel High-capacity Storage Unit Layered Light Armor Plating Makeshift Hacking Suite Authchip [R/Combat] Authchip [Power] Authchip [Propulsion] Authchip [Propulsion] Authchip [Device] Subdweller Laser Subdweller Laser Pulse Rifle Ion Cannon Battle Cannon Advanced Assault Cannon Subdweller Shrapnel Launcher Power Maul Piercing Trap Peak State ------------ > --- POWER ------------ Light Nuclear Core > --- PROPULSION ------- Improved Carbon-fiber Leg Improved Carbon-fiber Leg > --- UTILITY ---------- Improved Heat Sink High-capacity Storage Unit > --- WEAPON ----------- Assault Rifle Gauss Rifle > --- INVENTORY -------- Improved Carbon-fiber Leg Improved Carbon-fiber Leg Subdweller Monowheel High-capacity Storage Unit Layered Light Armor Plating Makeshift Hacking Suite Authchip [R/Combat] Authchip [Power] Authchip [Propulsion] Authchip [Propulsion] Authchip [Device] Subdweller Laser Subdweller Laser Pulse Rifle Ion Cannon Battle Cannon Advanced Assault Cannon Subdweller Shrapnel Launcher Power Maul Piercing Trap [Rating: 26] Favorites ----------- Power Ion Engine Engine Ion Engine Power Core Light Nuclear Core Propulsion Aluminum Leg Treads Light Treads Leg Aluminum Leg Utility High-capacity Storage Unit Device Improved Terrain Scanner Storage High-capacity Storage Unit Weapon Beam Cannon Energy Gun Particle Gun Energy Cannon Beam Cannon Ballistic Gun Assault Rifle Build | -11 -10 -10 -7 ------- Run | Yrd Mat Sub Rec Slots Evolved . | . . . . Power . | . . . . Propulsion . | . . . . Utility . | . . . . Weapon . | . . . . Parts Attached 25 | . 5 10 10 Power 4 | . 1 1 2 Engine 2 | . 1 1 . Core 2 | . . . 2 Reactor . | . . . . Propulsion 9 | . 1 4 4 Treads 2 | . . 2 . Leg 7 | . 1 2 4 Wheel . | . . . . Hover . | . . . . Flight . | . . . . Utility 3 | . 2 . 1 Device 2 | . 1 . 1 Storage 1 | . 1 . . Processor . | . . . . Hackware . | . . . . Protection . | . . . . Artifact . | . . . . Weapon 9 | . 1 5 3 Energy Gun 2 | . . 2 . Energy Cannon 3 | . 1 2 . Ballistic Gun 4 | . . 1 3 Ballistic Cannon . | . . . . Launcher . | . . . . Special Weapon . | . . . . Impact Weapon . | . . . . Slashing Weapon . | . . . . Piercing Weapon . | . . . . Special Melee Weapon . | . . . . Unidentified Prototypes . | . . . . Corrupted Parts 1 | . . 1 . System Corruption 6 | . . 6 . Parts Lost 8 | . 1 3 4 Power 2 | . 1 . 1 Propulsion 3 | . . 1 2 Utility . | . . . . Weapon 3 | . . 2 1 Highest Loss Streak 4 | . 1 1 4 To Critical Strikes . | . . . . Average Slot Usage (%) 96 | . 85 99 98 Engine 9 | . 14 14 . Core 4 | . . . 13 Treads 10 | . . 20 . Leg 17 | . 28 6 27 Device 11 | . . 14 14 Storage 14 | . 14 14 14 Energy Gun 6 | . 9 10 . Energy Cannon 10 | . 4 14 8 Ballistic Gun 10 | . 14 3 18 Peak Build Rating 26 | 6 10 13 26 Average Rating 14 | 6 6 11 21 On Entrance 8 | 6 6 10 11 Naked Turns . | . . . . Heaviest Build 53 | 11 51 52 53 Greatest Support 40 | 20 20 40 36 Greatest Overweight (x) 14 | . 2 2 14 Average Overweight (x) 1 | . . 1 1 Largest Inventory Capacity 20 | 8 20 20 20 Average Capacity 18 | 8 13 20 20 Most Carried 20 | 5 12 18 20 Average Carried 14 | 4 7 14 18 Final Capacity 20 | 8 20 20 20 Final Carried 20 | 4 12 13 20 Class Distribution -------------------- 67% | Mutant 27% | Commander-Mutant 5% | Scavenger-Mutant Dominant Class ---------------- Mutant | -10/Materials Mutant | -10/Subcaves Commander-Mutant | -7/Recycling Resources | -11 -10 -10 -7 ----------- Run | Yrd Mat Sub Rec Matter Collected 536 | 192 103 151 90 Remotely . | . . . . Salvage Created 984 | . 239 583 162 Parts 61 | . 12 38 11 Haulers Intercepted . | . . . . Recyclers Shooed 2 | . 1 . 1 Parts Field Recycled . | . . . . Retrieved Matter . | . . . . Parts Self-Destructed 25 | . . 25 . Prevented . | . . . . Kills | -11 -10 -10 -7 ------- Run | Yrd Mat Sub Rec Combat Hostiles Destroyed 23 | . 7 12 4 Guns 12 | . 5 5 2 Cannons 10 | . 2 6 2 Classes Destroyed 5 | . 3 1 1 Turret 2 | . . 2 . Swarmer 7 | . 2 4 1 Grunt 6 | . 2 2 2 Hunter 1 | . . . 1 Subdweller 9 | . 3 6 . Best Kill Streak 4 | . 4 4 2 Combat Bots Only 4 | . 4 4 2 Max Kills in Single Turn 1 | . 1 1 1 Gunslinging . | . . . . Exploded . | . . . . Melee . | . . . . Uniques/NPCs Destroyed . | . . . . Combat | -11 -10 -10 -7 -------- Run | Yrd Mat Sub Rec Hostile Shots Fired 173 | . 32 120 21 Missed 59 | . 9 44 6 Damage Taken 1411 | . 272 986 153 Core 250 | . 54 166 30 Absorbed by Shields 16 | . . . 16 Ignored by Resistances 398 | . 83 262 53 Core Remaining (%) 100 | 100 . . . Volleys Fired 97 | . 22 68 7 Largest 2 | . 2 2 2 Hottest 125 | . 80 125 120 Shots Fired 188 | . 44 132 12 Gun 86 | . 23 60 3 Cannon 102 | . 21 72 9 Launcher . | . . . . Special . | . . . . Kinetic 47 | . 22 22 3 Thermal 120 | . 22 89 9 Explosive . | . . . . Electromagnetic 21 | . . 21 . Robot Hit Streak 33 | . 14 33 6 Robot Miss Streak 3 | . 2 3 1 Penetration Max . | . . . . Secondary Targets . | . . . . Shots Hit Robots 140 | . 33 99 8 Core Hits 49 | . 13 29 7 Critical Kills . | . . . . Critical Parts Destroyed . | . . . . Critical Strikes . | . . . . Melee Attacks . | . . . . Impact . | . . . . Slashing . | . . . . Piercing . | . . . . Sneak Attacks . | . . . . Combat Hostiles . | . . . . Follow-up Attacks . | . . . . Damage Inflicted 2561 | . 515 1886 160 Guns 1084 | . 222 808 54 Cannons 1305 | . 280 924 101 Explosions 154 | . . 154 . Melee . | . . . . Ramming 18 | . 13 . 5 Kinetic 557 | . 222 281 54 Thermal 1649 | . 280 1268 101 Explosive . | . . . . Electromagnetic 337 | . . 337 . Impact . | . . . . Slashing . | . . . . Piercing . | . . . . Highest Corruption 6 | . . 6 6 Average Corruption 6 | . . 6 6 Corruption Purged . | . . . . Corruption Blocked . | . . . . Effects 58 | . . 10 48 Message Errors 20 | . . 4 16 Matter Fused 15 | . . 3 12 Heat Flow Errors 2 | . . . 2 Energy Discharges 8 | . . . 8 Parts Rejected 1 | . . . 1 Parts Fused 1 | . . . 1 Data Loss (minor) 7 | . . 2 5 Data Loss (major) 1 | . . . 1 Misfires 1 | . . . 1 Alerts 2 | . . 1 1 Overload Shots . | . . . . Overflow Damage . | . . . . Projectiles . | . . . . Explosions . | . . . . Melee . | . . . . Knockbacks . | . . . . Impact . | . . . . Kinetic . | . . . . Secondary . | . . . . Self-Inflicted Damage . | . . . . Shots . | . . . . Rammed . | . . . . Targets Rammed 6 | . 3 . 3 Kicked 6 | . 3 . 3 Crushed . | . . . . Highest Temperature 139 | . 117 90 139 Average Temperature 38 | . 49 25 33 Received Heat Transfer 456 | . 123 303 30 Siege Activations . | . . . . Robots Corrupted 1 | . . 1 . Combat Hostiles 1 | . . 1 . Parts Fried 2 | . . 2 . Impact Corruptions . | . . . . Robots Melted . | . . . . Combat Hostiles . | . . . . Parts Melted 2 | . 1 1 . Heat Transferred 3350 | . 592 2555 203 Parts Sabotaged . | . . . . Parts Stolen . | . . . . Parts Stripped . | . . . . Power Chain Reactions 1 | . . 1 . Alert | -11 -10 -10 -7 ------- Run | Yrd Mat Sub Rec Peak Influence 181 | . 181 . 83 Initial 3 | . . . 3 Average 36 | . 42 . 32 Maximum Alert Level . | . . . . Low Security (%) 100 | 100 100 . 100 Level 1 . | . . . . Level 2 . | . . . . Level 3 . | . . . . Level 4 . | . . . . Level 5 . | . . . . High Security . | . . . . Max Security . | . . . . Squads Dispatched . | . . . . Investigation . | . . . . Extermination . | . . . . Reinforcement . | . . . . Assault . | . . . . Garrison . | . . . . Intercept . | . . . . Searches Triggered . | . . . . Construction Impeded . | . . . . Haulers Reinforced . | . . . . Active Scanning Responses . | . . . . Cargo Convoy Interrupts . | . . . . Stealth | -11 -10 -10 -7 --------- Run | Yrd Mat Sub Rec Distress Signals 1 | . 1 . . Communications Jammed . | . . . . Distress Signals . | . . . . Times Spotted 37 | . 15 15 7 Peak Tracking Total 6 | . 5 6 2 Tactical Retreats 6 | . 3 3 . Traps | -11 -10 -10 -7 ------- Run | Yrd Mat Sub Rec Traps Triggered 3 | . 1 2 . Indirectly . | . . . . Trap Hack Attempts . | . . . . Triggered . | . . . . Disarmed . | . . . . Reprogrammed . | . . . . Reused . | . . . . Traps Extracted . | . . . . Installed . | . . . . Triggered . | . . . . Most Traps Carried 1 | . . 1 1 Machines | -11 -10 -10 -7 ---------- Run | Yrd Mat Sub Rec Machines Disabled 1 | . . 1 . Max in Single Turn 1 | . . 1 . Machines Repaired . | . . . . Machines Dismantled . | . . . . Machines Sabotaged . | . . . . Overloaded Fab Kills . | . . . . Hacking | -11 -10 -10 -7 --------- Run | Yrd Mat Sub Rec Machines Accessed 7 | . 1 . 6 Terminals 5 | . 1 . 4 Fabricators . | . . . . Repair Stations . | . . . . Recycling Units 2 | . . . 2 Scanalyzers . | . . . . Garrison Access . | . . . . Total Hacks 14 | . 3 . 11 Successful 11 | . 3 . 8 Failed 3 | . . . 3 Catastrophic 1 | . . . 1 Database Lockouts . | . . . . Manual 11 | . 2 . 9 Terminals 12 | . 3 . 9 Fabricators . | . . . . Repair Stations . | . . . . Recycling Units 2 | . . . 2 Scanalyzers . | . . . . Garrison Access . | . . . . Terminal Hacks 2 | . 1 . 1 Record 1 | . . . 1 Prototype ID Bank 1 | . 1 . . Fabricator Hacks . | . . . . Repair Station Hacks . | . . . . Recycling Unit Hacks . | . . . . Scanalyzer . | . . . . Garrison Access Hacks . | . . . . Unauthorized Hacks 9 | . 2 . 7 Terminals 7 | . 2 . 5 Botnet 3 | . 1 . 2 Skim 4 | . 1 . 3 Fabricators . | . . . . Repair Stations . | . . . . Recycling Units 2 | . . . 2 Tunnel 2 | . . . 2 Scanalyzers . | . . . . Garrison Access . | . . . . Data Cores Recovered . | . . . . Used . | . . . . Hacking Detections 4 | . 1 . 3 Full Trace Events . | . . . . Feedback Events . | . . . . Feedback Blocked . | . . . . Robot Schematics Acquired . | . . . . Robots Built . | . . . . Authchips . | . . . . Time . | . . . . Total Robot Build Rating . | . . . . Part Schematics Acquired . | . . . . Parts Built . | . . . . Authchips . | . . . . Time . | . . . . Total Part Build Rating . | . . . . Parts Repaired . | . . . . Time . | . . . . Parts Recycled . | . . . . Recycled Matter . | . . . . Retrieved Matter . | . . . . Retrieved Components . | . . . . Parts Scanalyzed . | . . . . Part Schematics Acquired . | . . . . Parts Damaged . | . . . . Bothacking | -11 -10 -10 -7 ------------ Run | Yrd Mat Sub Rec Used RIF Installer . | . . . . Robots Hacked . | . . . . Non-combat . | . . . . Combat . | . . . . Robot Hacks Applied . | . . . . Relay Couplers Released . | . . . . Fabnet Peak Effective % . | . . . . Robots Rewired 7 | . . . 7 Allies Hacked . | . . . . Hacks Repelled . | . . . . Allies | -11 -10 -10 -7 -------- Run | Yrd Mat Sub Rec Total Allies 7 | . . . 7 Largest Group 7 | . . . 7 Highest-Rated Group 146 | . . . 146 Highest-Rated Ally 40 | . . . 40 Total Orders 4 | . . . 4 DROP 1 | . . . 1 PICKUP 2 | . . . 2 COLLECT 1 | . . . 1 Ally Attacks 12 | . . . 12 Total Damage 169 | . . . 169 Kills 2 | . . . 2 Allies Corrupted . | . . . . Allies Melted . | . . . . Intel | -11 -10 -10 -7 ------- Run | Yrd Mat Sub Rec Robot Analysis Total . | . . . . Derelict Logs Recovered 1 | . . 1 . Drone Launches . | . . . . Drone Recoveries . | . . . . Exploration | -11 -10 -10 -7 ------------- Run | Yrd Mat Sub Rec Turns Passed 4634 | 2 847 2213 1572 Spaces Moved 1691 | 1 277 797 616 Core 2 | . . . 2 Treads 616 | . . 616 . Legs 1073 | 1 277 181 614 Wheels . | . . . . Hover . | . . . . Flight . | . . . . Fastest Speed 120 | 120 120 240 190 Average Speed 222 | 120 175 244 215 Slowest Speed 750 | 120 260 260 750 Overloaded Moves . | . . . . Propulsion Burnouts . | . . . . Robots Hopped . | . . . . Cave-ins Triggered . | . . . . Exploration Rate (%) 36 | 2 24 39 79 Regions Visited 3 Branch Regions 2 Pre-discovered Areas 2 | . . . 2 Known Exits Taken 1 | . . 1 . Unknown Exits Taken 2 | 1 1 . . Scrap Searched 3 | . . 3 . Spaces Dug . | . . . . Terrain Destroyed 6 | . . 6 . Melee . | . . . . Projectile . | . . . . AOE 6 | . . 6 . Terrain Rammed . | . . . . Walls Destroyed . | . . . . Machines Disabled . | . . . . Actions | -11 -10 -10 -7 --------- Run | Yrd Mat Sub Rec Total 2375 | 2 594 931 848 Wait 413 | . 279 37 97 Move 1688 | . 276 796 616 Hop . | . . . . Pick Up 38 | . 8 12 18 Fast Attach 9 | . 2 . 7 Attach 11 | . 1 8 2 Detach . | . . . . Swap 5 | . 2 2 1 Drop 24 | 2 1 8 13 Fire 97 | . 22 68 7 Melee . | . . . . Ram . | . . . . Kick 6 | . 3 . 3 Crush . | . . . . Escape Stasis . | . . . . Rewire 84 | . . . 84 Trap . | . . . . Miscellaneous . | . . . . Route ------- -11/Scrapyard -10/Materials (discovered 2 exits: [*Mat] / [*Sub]) -10/Subcaves (discovered 3 exits: [*Mat x2] / *Rec) -7/Recycling History --------- Turn | Location | Event 3 | -11/Scrapyard | Discovered new exit (range 0) 3 | -11/Scrapyard | Entered Materials 157 | -10/Materials | Discovered new exit (range 8) 308 | -10/Materials | Build established: Mutant 418 | -10/Materials | Discovered new exit (range 4) 603 | -10/Materials | Derelicts attacked the area 850 | -10/Materials | Entered Subcaves 966 | -10/Subcaves | Shifting Twisted Machinery released Riot Gun 1031 | -10/Subcaves | Shifting Twisted Machinery released Flamer 1099 | -10/Subcaves | Shifting Twisted Machinery released Sub. Monowheel 1289 | -10/Subcaves | Shifting Twisted Machinery released Mak. Hacking Suite 1356 | -10/Subcaves | Discovered new exit (range 13) 1930 | -10/Subcaves | Discovered new exit (range 7) 1933 | -10/Subcaves | Shifting Twisted Machinery released Sub. Monowheel 2262 | -10/Subcaves | Identified exit to Recycling 2558 | -10/Subcaves | Core integrity fell below 50% 2966 | -10/Subcaves | Core integrity fell below 20% 3063 | -10/Subcaves | Entered Recycling 3064 | -7/Recycling | Joined Warlord attack on 0b10 via Recycling 3150 | -7/Recycling | Lost 4 parts (1p2n1w) 3670 | -7/Recycling | Build established: Commander-Mutant 4635 | -7/Recycling | Destroyed by Y-54 Guardian with Flak Gun Last Messages --------------- 04404_ Y-54 Guardian springs to life. 04405_ System corrupted: Gauss Rifle rejected. 04405_ Acquired Gauss Rifle. 04411_ Y-54 Guardian critical meltdown. 04417_ R-06 Scavenger collects Flak Gun. 04436_ System corrupted: Component data lost. 04462_ System corrupted: IFF burst signal emitted. 04462_ Connecting with Terminal... >>Trojan(Skim) Trojan loaded successfully. Testing... Terminal linked with 2 systems. Please expand to 2 more systems! 04482_ System corrupted: Matter fused (-8). 04514_ NPKS:9DOWH77#TR7EC|9 1J,PZHLJM31